bitfinex/quotes_ETHUSD_20220120
["timestamp","ask_amount","ask_price","bid_price","bid_amount"]
[1642679178305,1.53063615,3143.4,3143.3,4.32362566]
[1642679178909,1.53063615,3143.4,3143.3,2.70580961]
[1642679179509,1.53063615,3143.4,3143.3,4.32362566]
[1642679179912,1.53063615,3143.4,3143.3,1.61781605]
[1642679180115,0.00113685,3143.5,3143.3,1.61781605]
[1642679180911,0.00113685,3143.5,3143.4,2.70580961]
[1642679181112,1.49057913,3143.5,3143.4,2.70580961]
[1642679181312,1.49057913,3143.5,3143.3,4.32362566]
[1642679181513,1.49057913,3143.5,3143.4,2.70580961]
[1642679181759,1.49057913,3143.5,3143.2,1.61781605]
[1642679182350,1.49057913,3143.5,3143.3,4.32362566]
[1642679182553,1.49057913,3143.5,3143.4,2.70580961]
[1642679183451,1.49057913,3143.5,3143.3,1.61781605]
[1642679183652,1.49057913,3143.5,3143.3,2.70580961]
[1642679183851,1.49057913,3143.5,3143.4,2.70580961]
[1642679184851,1.49057913,3143.5,3143.2,1.61781605]
[1642679185604,1.49057913,3143.5,3143.2,4.32362566]
[1642679185904,1.49057913,3143.5,3143.3,2.70580961]
[1642679186104,1.49057913,3143.5,3143.4,2.70580961]
[1642679186304,1.49057913,3143.5,3143.2,1.61781605]
[1642679188906,1.49057913,3143.5,3143.2,4.32362566]
[1642679189353,1.49057913,3143.5,3143.3,2.70580961]
[1642679189552,1.49057913,3143.5,3143.4,2.70580961]
[1642679189756,1.49057913,3143.5,3143.2,1.61781605]
[1642679190758,1.49057913,3143.5,3143.2,4.32362566]
[1642679191160,1.49057913,3143.5,3143.3,2.70580961]
[1642679191362,1.49057913,3143.5,3143.4,2.70580961]
[1642679191560,0.00113685,3143.5,3143.4,2.70580961]
[1642679191761,0.00113685,3143.5,3143.2,4.23700566]
[1642679191960,0.00113685,3143.5,3143.3,2.70580961]
[1642679194507,0.00113685,3143.5,3143.4,2.70580961]
[1642679195106,0.00113685,3143.5,3143.2,1.53119605]
[1642679195307,0.00113685,3143.5,3143.2,4.23700566]
[1642679195509,0.00113685,3143.5,3143.3,2.70580961]
[1642679195707,0.00113685,3143.5,3143.4,2.70580961]
[1642679195912,0.00113685,3143.5,3143.2,4.23700566]
[1642679196311,1.5183873,3143.3,3143.2,1.53119605]
[1642679196509,1.5183873,3143.3,3143.1,0.00113684]
[1642679197276,0.00113685,3143.5,3143.3,38.4816127]
[1642679197477,0.00113685,3143.5,3143.4,4.05640179]
[1642679197680,1.1377774,3143.5,3143.4,4.05640179]
[1642679204478,0.00113685,3143.5,3143.4,4.05640179]
[1642679206066,0.00113685,3143.5,3143.4,4.05822273]
[1642679207668,1.43575092,3143.7,3143.4,4.05822273]
[1642679208113,0.00170527,3143.6,3143.4,4.05822273]
[1642679208618,0.00113685,3143.5,3143.4,4.05822273]
[1642679210218,0.00113685,3143.5,3143.4,5.36665106]
[1642679211421,0.00113685,3143.5,3143.4,8.07206024]
[1642679217019,0.00113685,3143.5,3143.4,6.76363191]
[1642679220362,0.00113685,3143.5,3143.4,6.76273225]
[1642679223525,0.00113685,3143.5,3143.4,8.38207261]
[1642679223926,0.00113685,3143.5,3143.4,6.76273225]
[1642679225329,0.00113685,3143.5,3143.4,8.23802745]
[1642679226331,0.00113685,3143.5,3143.4,10.90959553]
[1642679226532,0.00113685,3143.5,3143.4,8.23802745]
[1642679227874,0.00113685,3143.5,3143.4,10.66723197]
[1642679228073,0.00113685,3143.5,3143.4,8.23802745]
[1642679228276,0.00113685,3143.5,3143.4,11.01673319]
[1642679228874,7.33217949,3144.9,3143.5,5.7522737]
[1642679229074,7.33217949,3144.9,3143.9,1.61936323]
[1642679229375,0.00625266,3144.6,3144.5,1.31113315]
[1642679229575,0.00625266,3144.6,3144.5,6.84438797]
[1642679229773,1.182,3145.3,3144.6,2.45]
[1642679229973,1.182,3145.3,3144.7,6.93585664]
[1642679230173,0.00284212,3145.1,3144.8,2.70540918]
[1642679230650,0.00227369,3145.0,3144.8,2.70540918]
[1642679230948,23.01780199,3145.6,3144.8,2.70540918]
[1642679230949,0.00170527,3144.9,3144.8,2.70540918]
[1642679231548,0.00170527,3144.9,3144.8,5.44813021]
[1642679232347,0.00170527,3144.9,3144.8,5.43423136]
[1642679232549,0.00170527,3144.9,3144.8,5.47300641]
[1642679232948,0.00170527,3144.9,3144.8,2.70540918]
[1642679233149,0.00170527,3144.9,3144.7,2.70540918]
[1642679233349,0.00170527,3144.9,3144.8,2.70540918]
[1642679233549,0.00113685,3144.8,3144.3,3.22657811]
[1642679233751,0.00170527,3144.9,3144.3,0.23094733]
[1642679233948,0.00113685,3144.8,3144.4,0.00113685]
[1642679234148,1.20737358,3144.6,3144.4,0.00113685]
[1642679238919,1.50737358,3144.6,3144.4,0.00113685]
[1642679239520,3.13828275,3144.5,3144.4,0.00113685]
[1642679239721,4.26959592,3144.5,3144.4,0.00113685]
[1642679239922,5.26959592,3144.5,3143.7,0.00511581]
[1642679240120,2.0954936,3144.4,3143.7,0.00511581]
[1642679240323,3.15537228,3144.3,3143.7,0.00511581]
[1642679240725,1.0,3144.2,3143.6,0.00568424]
[1642679240924,1.3,3144.2,3143.6,0.00568424]
[1642679241125,1.32917414,3143.8,3143.6,0.00568424]
[1642679243265,1.62917414,3143.8,3143.6,0.00568424]
[1642679243665,1.32917414,3143.8,3143.6,0.00568424]
[1642679246921,0.83073448,3144.7,3143.6,0.00568424]
[1642679247120,0.00227369,3145.0,3143.7,1.61936323]
[1642679247321,0.00227369,3145.0,3143.8,3.19850566]
[1642679247521,0.00170527,3144.9,3143.8,3.20305305]
[1642679247724,0.00170527,3144.9,3143.9,0.00397897]
[1642679247920,3.7716,3145.1,3143.9,0.00397897]
[1642679247921,0.00113685,3144.8,3143.9,0.00397897]
[1642679248320,1.13744939,3144.6,3144.0,1.4392602]
[1642679248520,1.13744939,3144.6,3144.1,5.90319796]
[1642679248721,1.13744939,3144.6,3144.2,2.7046923]
[1642679248921,1.13744939,3144.6,3144.3,2.7046923]
[1642679249123,1.13744939,3144.6,3144.4,2.7046923]
[1642679249364,1.13744939,3144.6,3144.3,0.00170527]
[1642679249365,1.13744939,3144.6,3144.5,2.7046923]
[1642679249876,1.13744939,3144.6,3144.3,0.00170527]
[1642679250270,1.13744939,3144.6,3144.1,2.7046923]
[1642679250466,1.13744939,3144.6,3144.2,2.7046923]
[1642679250669,1.13744939,3144.6,3144.3,2.7046923]
[1642679250968,1.13744939,3144.6,3144.4,2.7046923]
[1642679251169,1.13744939,3144.6,3144.5,2.7046923]
[1642679251573,1.13744939,3144.6,3144.3,0.00170527]
[1642679251975,1.13744939,3144.6,3144.0,0.00341054]
[1642679253824,1.13744939,3144.6,3144.0,2.70810284]
[1642679254024,1.13744939,3144.6,3144.1,2.7046923]
[1642679254224,1.13744939,3144.6,3144.2,2.7046923]
[1642679254424,1.13744939,3144.6,3144.2,2.70696599]
[1642679254627,1.13744939,3144.6,3144.3,0.00170527]
[1642679254826,1.2329,3144.9,3144.3,0.00170527]
[1642679255025,1.5329,3144.9,3143.9,0.00397897]
[1642679255226,0.00113685,3144.8,3143.9,0.00397897]
[1642679255626,1.00113685,3144.8,3143.9,0.00397897]
[1642679255824,1.00113685,3144.8,3143.9,1.6233422]
[1642679256025,0.00113685,3144.8,3144.4,1.49271474]
[1642679256226,1.27661039,3144.8,3144.4,1.49271474]
[1642679256776,2.27661039,3144.8,3144.4,1.49271474]
[1642679256970,1.27661039,3144.8,3144.4,1.49271474]
[1642679259672,1.27661039,3144.8,3144.0,0.00341054]
[1642679260271,1.27661039,3144.8,3143.9,1.61936323]
[1642679260272,1.27661039,3144.8,3143.9,1.6233422]
[1642679260519,1.27661039,3144.8,3144.0,0.00341054]
[1642679261019,1.27661039,3144.8,3144.2,1.34770177]
[1642679261424,1.27661039,3144.8,3144.3,0.00170527]
[1642679262625,1.27661039,3144.8,3144.0,0.00341054]
[1642679262821,1.27661039,3144.8,3144.1,0.00284212]
[1642679263125,1.27661039,3144.8,3144.0,0.00341054]
[1642679263528,1.27661039,3144.8,3144.0,1.62277377]
[1642679263725,1.27661039,3144.8,3144.1,1.23543055]
[1642679263926,1.27661039,3144.8,3144.1,1.23827267]
[1642679264125,1.27661039,3144.8,3144.2,0.00227369]
[1642679266391,0.00113685,3144.8,3144.2,2.66098813]
[1642679266591,0.00113685,3144.8,3144.3,1.61936323]
[1642679266791,0.00113685,3144.8,3144.4,2.69717007]
[1642679267591,0.00113685,3144.8,3144.4,1.32234544]
[1642679269219,0.00113685,3144.8,3144.3,0.00170527]
[1642679270721,0.00113685,3144.8,3144.3,1.30290098]
[1642679271765,0.00113685,3144.8,3144.3,0.00170527]
[1642679272964,0.00113685,3144.8,3144.3,3.33905714]
[1642679273768,0.00113685,3144.8,3144.3,2.00028207]
[1642679274368,0.00028806,3144.8,3144.3,2.00028207]
[1642679274568,0.00028806,3144.8,3144.4,2.70643112]
[1642679274769,0.00028806,3144.8,3144.5,2.89680228]
[1642679274969,0.00028806,3144.8,3144.6,2.70444548]
[1642679275172,0.00028806,3144.8,3144.7,2.70444548]
[1642679275372,0.00028806,3144.8,3144.6,0.00084879]
[1642679275824,0.00028806,3144.8,3144.6,2.70444548]
[1642679276023,0.00028806,3144.8,3144.6,2.70529427]
[1642679276227,0.00028806,3144.8,3144.7,2.70444548]
[1642679276723,0.00028806,3144.8,3144.6,0.00084879]
[1642679277122,0.00028806,3144.8,3144.5,0.00141721]
[1642679277726,0.00028806,3144.8,3144.5,2.70586269]
[1642679277924,0.00028806,3144.8,3144.6,2.70444548]
[1642679278125,0.00028806,3144.8,3144.7,2.70444548]
[1642679278327,0.00028806,3144.8,3144.6,0.00084879]
[1642679278729,0.00028806,3144.8,3144.4,0.00198564]
[1642679278927,0.00028806,3144.8,3144.4,2.70643112]
[1642679279364,0.00028806,3144.8,3144.5,0.00141721]
[1642679280364,0.00028806,3144.8,3144.4,2.70642288]
[1642679280570,0.00028806,3144.8,3144.5,0.00141721]
[1642679281169,0.00028806,3144.8,3144.5,2.70585445]
[1642679281571,0.00028806,3144.8,3144.6,0.00084879]
[1642679282170,0.00028806,3144.8,3144.6,2.36207826]
[1642679282368,0.00028806,3144.8,3144.7,2.70443724]
[1642679282569,0.00028806,3144.8,3144.6,0.00084879]
[1642679285127,2.52119272,3145.2,3144.6,0.00084879]
[1642679285528,0.00199333,3145.1,3144.6,0.00084879]
[1642679285928,0.0014249,3145.0,3144.6,0.00084879]
[1642679286328,0.00085648,3144.9,3144.6,0.00084879]
[1642679286770,1.43549627,3144.7,3144.6,0.00084879]
[1642679291123,1.43549627,3144.7,3144.5,2.6022668]
[1642679291324,0.00085648,3144.9,3144.5,2.6022668]
[1642679291728,0.00113685,3144.8,3144.5,2.6022668]
[1642679292025,0.00341054,3145.2,3144.5,2.6022668]
[1642679292425,0.00284212,3145.1,3144.5,2.6022668]
[1642679292825,0.00227369,3145.0,3144.5,2.6022668]
[1642679293227,1.54749383,3144.8,3144.5,2.6022668]
[1642679295173,1.00341054,3145.2,3144.4,0.3]
[1642679295473,0.00284212,3145.1,3144.4,1.91936323]
[1642679295873,0.00227369,3145.0,3144.4,1.91936323]
[1642679296272,0.00170527,3144.9,3144.4,1.91936323]
[1642679296673,1.52803705,3144.8,3144.4,1.91936323]
[1642679297074,1.5269002,3144.8,3144.4,1.91936323]
[1642679300023,1.00341054,3145.2,3144.4,1.91936323]
[1642679300225,0.00341054,3145.2,3144.4,1.91936323]
[1642679300426,0.00284212,3145.1,3144.4,1.91936323]
[1642679300825,0.00227369,3145.0,3144.4,1.91936323]
[1642679301225,0.00170527,3144.9,3144.4,1.91936323]
[1642679301627,0.00113685,3144.8,3144.4,0.3]
[1642679301870,1.09383765,3144.7,3144.4,0.3]
[1642679302470,1.09383765,3144.7,3144.4,1.91936323]
[1642679302872,1.09383765,3144.7,3144.5,1.61936323]
[1642679304782,1.00341054,3145.2,3144.5,1.61936323]
[1642679305183,0.00284212,3145.1,3144.5,1.61936323]
[1642679305623,0.00227369,3145.0,3144.5,1.61936323]
[1642679305825,0.00227369,3145.0,3144.5,3.05169761]
[1642679306022,0.00170527,3144.9,3144.5,3.05169761]
[1642679306422,0.00113685,3144.8,3144.5,3.05169761]
[1642679306821,0.00227369,3145.0,3144.5,3.05169761]
[1642679307226,0.00170527,3144.9,3144.5,3.05169761]
[1642679307622,0.00113685,3144.8,3144.5,3.05169761]
[1642679308024,1.31495202,3145.1,3144.5,3.05169761]
[1642679308025,0.00227369,3145.0,3144.5,3.05169761]
[1642679308425,0.00170527,3144.9,3144.5,3.05169761]
[1642679308825,0.00113685,3144.8,3144.5,3.05169761]
[1642679309273,0.00227369,3145.0,3144.5,3.05169761]
[1642679309676,0.00170527,3144.9,3144.5,3.05169761]
[1642679310074,0.00113685,3144.8,3144.5,1.61936323]
[1642679310474,0.00227369,3145.0,3144.5,1.61936323]
[1642679310876,0.00170527,3144.9,3144.5,1.61936323]
[1642679311273,0.00113685,3144.8,3144.5,4.32381846]
[1642679311676,1.31495202,3145.1,3144.5,4.32381846]
[1642679311677,0.00227369,3145.0,3144.5,4.32381846]
[1642679312074,0.00170527,3144.9,3144.5,4.32381846]
[1642679312478,0.00113685,3144.8,3144.5,4.32381846]
[1642679312875,1.31495202,3145.1,3144.5,4.32381846]
[1642679312876,0.00227369,3145.0,3144.5,4.32381846]
[1642679313331,0.00170527,3144.9,3144.5,4.32381846]
[1642679313730,0.00113685,3144.8,3144.5,4.32381846]
[1642679314130,0.00227369,3145.0,3144.5,4.32381846]
[1642679314531,0.00170527,3144.9,3144.5,4.32381846]
[1642679314932,0.00113685,3144.8,3144.5,4.32381846]
[1642679315332,0.00227369,3145.0,3144.5,4.32381846]
[1642679315731,0.00170527,3144.9,3144.5,4.32381846]
[1642679316131,0.00113685,3144.8,3144.5,4.32381846]
[1642679316533,0.00227369,3145.0,3144.5,4.32381846]
[1642679316976,0.00170527,3144.9,3144.5,4.32381846]
[1642679317273,1.31495202,3145.1,3144.5,4.32381846]
[1642679317274,0.00113685,3144.8,3144.5,4.32381846]
[1642679317678,0.00227369,3145.0,3144.5,4.32381846]
[1642679318074,0.00170527,3144.9,3144.5,4.32381846]
[1642679318475,0.00113685,3144.8,3144.5,4.32381846]
[1642679318876,0.00227369,3145.0,3144.5,4.32381846]
[1642679319279,1.61495202,3145.1,3144.5,4.32381846]
[1642679319280,0.00170527,3144.9,3144.5,4.32381846]
[1642679319685,0.00113685,3144.8,3144.5,4.32381846]
[1642679319980,0.00227369,3145.0,3144.5,4.32381846]
[1642679320381,0.00170527,3144.9,3144.5,4.32381846]
[1642679320827,0.00113685,3144.8,3144.5,4.32381846]
[1642679321227,0.00227369,3145.0,3144.5,4.32381846]
[1642679321626,0.00170527,3144.9,3144.5,4.32381846]
[1642679322026,0.00113685,3144.8,3144.5,4.32381846]
[1642679322427,0.00227369,3145.0,3144.5,4.32381846]
[1642679322830,1.31495202,3145.1,3144.5,4.32381846]
[1642679322831,0.00170527,3144.9,3144.5,4.32381846]
[1642679323226,0.00113685,3144.8,3144.5,4.32381846]
[1642679323629,0.00227369,3145.0,3144.5,4.32381846]
[1642679324132,0.00170527,3144.9,3144.5,4.32381846]
[1642679324572,0.00113685,3144.8,3144.5,4.32381846]
[1642679324976,1.31495202,3145.1,3144.5,4.32381846]
[1642679324977,0.00227369,3145.0,3144.5,4.32381846]
[1642679325582,0.00170527,3144.9,3144.5,4.32381846]
[1642679325975,0.00113685,3144.8,3144.5,4.32381846]
[1642679326479,0.00227369,3145.0,3144.5,4.32381846]
[1642679326775,0.00170527,3144.9,3144.5,4.32381846]
[1642679327176,0.00113685,3144.8,3144.5,4.32381846]
[1642679327576,1.31495202,3145.1,3144.5,4.32381846]
[1642679327577,0.00227369,3145.0,3144.5,4.32381846]
[1642679328037,0.00170527,3144.9,3144.5,4.32381846]
[1642679328424,0.00113685,3144.8,3144.5,4.32381846]
[1642679328825,0.00227369,3145.0,3144.5,4.32381846]
[1642679329225,0.00170527,3144.9,3144.5,4.32296988]
[1642679329628,0.00113685,3144.8,3144.5,4.32296988]
[1642679330025,1.31495202,3145.1,3144.5,4.32296988]
[1642679330026,0.00227369,3145.0,3144.5,4.32296988]
[1642679330426,0.00170527,3144.9,3144.5,4.32296988]
[1642679330832,0.00113685,3144.8,3144.5,4.32296988]
[1642679331230,0.00227369,3145.0,3144.5,4.32296988]
[1642679331772,0.00170527,3144.9,3144.5,4.32296988]
[1642679332172,0.00113685,3144.8,3144.5,4.32296988]
[1642679332374,0.00113685,3144.8,3144.6,2.70445523]
[1642679332572,0.00227369,3145.0,3144.7,2.70445523]
[1642679332775,0.00227369,3145.0,3144.5,2.70445523]
[1642679332974,0.00170527,3144.9,3144.5,2.70445523]
[1642679333379,0.00113685,3144.8,3144.5,2.70445523]
[1642679333779,0.00227369,3145.0,3144.5,2.70445523]
[1642679334177,0.00170527,3144.9,3144.5,2.70445523]
[1642679334579,0.00113685,3144.8,3144.5,2.70445523]
[1642679334978,0.00227369,3145.0,3144.5,2.70445523]
[1642679335380,0.00170527,3144.9,3144.6,2.72564965]
[1642679335630,0.00170527,3144.9,3144.7,2.70445523]
[1642679335832,0.00113685,3144.8,3144.4,5.54924858]
[1642679336230,0.00227369,3145.0,3144.4,2.72904485]
[1642679336631,0.00170527,3144.9,3144.4,2.72904485]
[1642679337030,0.00113685,3144.8,3144.4,2.72904485]
[1642679337432,0.00227369,3145.0,3144.4,2.72904485]
[1642679337631,0.00227369,3145.0,3144.4,5.46966119]
[1642679337832,0.00170527,3144.9,3144.4,5.46966119]
[1642679338235,0.00113685,3144.8,3144.4,1.92185187]
[1642679338434,0.00113685,3144.8,3144.5,1.62185187]
[1642679338634,0.00227369,3145.0,3144.5,1.62185187]
[1642679339034,0.00170527,3144.9,3144.5,1.62185187]
[1642679339478,0.00113685,3144.8,3144.5,1.62185187]
[1642679339677,0.00113685,3144.8,3144.4,1.92185187]
[1642679339878,0.00227369,3145.0,3144.4,1.92185187]
[1642679340279,0.00170527,3144.9,3144.4,1.92185187]
[1642679340679,0.00113685,3144.8,3144.4,1.92185187]
[1642679341078,0.00227369,3145.0,3144.4,1.92185187]
[1642679341483,0.00170527,3144.9,3144.4,1.92185187]
[1642679341680,0.00170527,3144.9,3144.4,0.97020987]
[1642679341880,0.00113685,3144.8,3144.4,0.97020987]
[1642679342280,0.00227369,3145.0,3144.4,0.97020987]
[1642679342681,0.00170527,3144.9,3144.4,0.97020987]
[1642679343124,0.00113685,3144.8,3144.4,0.97020987]
[1642679343529,1.31495202,3145.1,3144.4,0.97020987]
[1642679343530,0.00227369,3145.0,3144.4,0.97020987]
[1642679343933,0.00170527,3144.9,3144.4,0.97020987]
[1642679344430,0.00113685,3144.8,3144.4,0.97020987]
[1642679344830,0.00227369,3145.0,3144.4,0.97020987]
[1642679345232,0.00170527,3144.9,3144.4,0.97020987]
[1642679345630,0.00113685,3144.8,3144.4,0.97020987]
[1642679346030,0.00227369,3145.0,3144.4,0.97020987]
[1642679346433,0.00170527,3144.9,3144.4,0.97020987]
[1642679346872,0.00113685,3144.8,3144.4,0.97020987]
[1642679347274,0.00227369,3145.0,3144.4,0.97020987]
[1642679347475,0.00227369,3145.0,3144.4,3.71752756]
[1642679347674,0.00170527,3144.9,3144.4,3.71752756]
[1642679348074,0.00113685,3144.8,3144.4,0.97020987]
[1642679348476,0.00227369,3145.0,3144.4,0.97020987]
[1642679348876,0.00170527,3144.9,3144.4,0.97020987]
[1642679349276,0.00113685,3144.8,3144.4,0.97020987]
[1642679349678,0.00227369,3145.0,3144.4,0.97020987]
[1642679350078,0.00170527,3144.9,3144.4,0.97020987]
[1642679350531,0.00113685,3144.8,3144.4,0.97020987]
[1642679350924,0.00227369,3145.0,3144.4,0.97020987]
[1642679351326,0.00170527,3144.9,3144.4,0.97020987]
[1642679351729,1.31495202,3145.1,3144.4,0.97020987]
[1642679351730,1.18519514,3144.7,3144.4,0.97020987]
[1642679351925,3.17615774,3144.6,3144.5,2.70457609]
[1642679352126,0.058,3144.6,3144.5,2.70457609]
[1642679352327,2.34615961,3144.6,3144.0,3.67478596]
[1642679352526,1.0,3144.5,3144.1,2.70457609]
[1642679352827,1.0,3144.5,3144.2,2.70457609]
[1642679353027,1.0,3144.5,3144.3,2.70457609]
[1642679353028,0.3,3144.5,3144.3,2.70457609]
[1642679353227,0.3,3144.5,3144.4,2.70457609]
[1642679353427,1.0,3144.5,3144.4,0.00113685]
[1642679353829,1.0,3144.5,3144.1,2.70457609]
[1642679354026,1.0,3144.5,3144.0,0.00341054]
[1642679354027,2.64615961,3144.6,3144.2,2.70457609]
[1642679354275,5.88935951,3144.6,3144.3,2.70457609]
[1642679354473,5.88935951,3144.6,3144.4,2.70457609]
[1642679354672,5.88935951,3144.6,3144.4,0.00113685]
[1642679354673,3.10859737,3144.5,3144.4,0.00113685]
[1642679355072,4.10859737,3144.5,3144.0,0.00341054]
[1642679355275,1.0,3144.4,3143.9,0.00397897]
[1642679355679,1.64615961,3144.6,3143.9,0.97418884]
[1642679355885,1.64615961,3144.6,3144.0,0.97020987]
[1642679356079,1.64615961,3144.6,3144.0,0.97362041]
[1642679356881,1.64615961,3144.6,3144.0,0.00341054]
[1642679357481,1.34615961,3144.6,3144.0,0.97362041]
[1642679358029,1.34615961,3144.6,3144.1,0.97020987]
[1642679358423,1.34615961,3144.6,3144.2,0.00227369]
[1642679363786,1.34615961,3144.6,3144.2,0.00136966]
[1642679365186,1.28815961,3144.6,3144.2,0.00136966]
[1642679374234,1.28815961,3144.6,3144.0,0.97020987]
[1642679374235,1.28815961,3144.6,3144.1,0.00193809]
[1642679375334,1.28815961,3144.6,3144.1,0.97214796]
[1642679375536,1.28815961,3144.6,3144.1,3.67693625]
[1642679375733,1.28815961,3144.6,3144.2,0.00136966]
[1642679376536,1.28815961,3144.6,3144.2,2.70615795]
[1642679376777,1.28815961,3144.6,3144.3,2.70478829]
[1642679376977,1.28815961,3144.6,3144.4,2.70478829]
[1642679377176,1.28815961,3144.6,3144.5,2.70478829]
[1642679377578,1.28906364,3144.6,3144.3,0.00080124]
[1642679377977,1.28906364,3144.6,3144.1,0.00193809]
[1642679378479,1.28906364,3144.6,3144.1,0.97214796]
[1642679378882,1.28906364,3144.6,3144.2,0.00136966]
[1642679383529,1.28906364,3144.6,3144.2,0.97157953]
[1642679384029,1.28906364,3144.6,3144.3,0.00080124]
[1642679388128,1.28906364,3144.6,3144.3,0.97101111]
[1642679388826,1.28906364,3144.6,3144.3,3.6757994]
[1642679389025,1.28906364,3144.6,3144.4,3.67499816]
[1642679389226,1.28906364,3144.6,3144.3,0.00080124]
[1642679389227,1.28906364,3144.6,3144.5,2.70478829]
[1642679389626,1.28906364,3144.6,3144.3,0.97101111]
[1642679390633,1.28906364,3144.6,3144.3,3.6757994]
[1642679390930,1.28906364,3144.6,3144.4,3.67499816]
[1642679391130,1.28906364,3144.6,3144.5,2.70478829]
[1642679391331,0.00090403,3144.6,3144.5,4.77020987]
[1642679391531,0.00090403,3144.6,3144.5,6.80478829]
[1642679391781,0.00090403,3144.6,3144.5,9.53383314]
[1642679392185,0.00090403,3144.6,3144.5,7.10385065]
[1642679392585,0.00090403,3144.6,3144.5,9.53253319]
[1642679392788,0.00090403,3144.6,3144.5,9.53257637]
[1642679392986,0.00090403,3144.6,3144.5,9.23351401]
[1642679393187,0.00090403,3144.6,3144.5,6.80478829]
[1642679393587,0.00090403,3144.6,3144.5,9.23351401]
[1642679394289,0.00090403,3144.6,3144.5,9.53351401]
[1642679394486,0.00090403,3144.6,3144.5,9.23351401]
[1642679396336,0.00090403,3144.6,3144.5,3.00478829]
[1642679397738,0.00090403,3144.6,3144.5,4.62198347]
[1642679397939,0.00090403,3144.6,3144.5,3.00478829]
[1642679398343,0.00090403,3144.6,3144.5,2.70478829]
[1642679398540,0.00090403,3144.6,3144.5,3.00478829]
[1642679400280,0.00090403,3144.6,3144.5,2.70478829]
[1642679400986,0.00090403,3144.6,3144.4,4.32198347]
[1642679401386,0.00090403,3144.6,3144.5,11.80423858]
[1642679401585,1.0,3145.6,3144.6,4.60180805]
[1642679401785,0.83047746,3145.8,3144.8,1.61732332]
[1642679401786,1.83047746,3145.8,3144.8,1.61732332]
[1642679401986,0.00625266,3145.7,3144.8,1.91732332]
[1642679402185,0.00625266,3145.7,3144.9,2.70478829]
[1642679402385,1.83047746,3145.8,3144.9,2.70478829]
[1642679402386,0.00568423,3145.6,3144.9,2.70478829]
[1642679402784,0.00511581,3145.5,3144.9,2.70478829]
[1642679403237,0.00454739,3145.4,3144.9,2.70478829]
[1642679403641,0.00397896,3145.3,3144.9,5.51657773]
[1642679403935,0.00397896,3145.3,3145.0,2.70478829]
[1642679404136,0.00341054,3145.2,3145.0,5.70135867]
[1642679404337,0.00341054,3145.2,3145.1,2.70478829]
[1642679404535,1.0,3145.7,3145.1,2.70478829]
[1642679404735,1.0,3145.7,3145.2,2.74343739]
[1642679404936,0.00454739,3145.4,3145.3,2.70478829]
[1642679405136,0.00454739,3145.4,3145.1,2.70478829]
[1642679405339,0.00625266,3145.7,3145.1,2.70478829]
[1642679405538,0.00397896,3145.3,3145.1,2.70478829]
[1642679405737,0.00568423,3145.6,3145.1,2.70478829]
[1642679405936,0.00341054,3145.2,3145.0,2.70478829]
[1642679406137,0.00511581,3145.5,3144.9,3.11178944]
[1642679406340,0.00284212,3145.1,3144.9,3.11178944]
[1642679406536,0.00568423,3145.6,3144.9,3.41178944]
[1642679406779,0.00227369,3145.0,3144.9,3.41178944]
[1642679406979,0.00511581,3145.5,3144.9,3.11178944]
[1642679407180,0.00227369,3145.0,3144.9,3.11178944]
[1642679407381,0.00568423,3145.6,3144.9,5.92354732]
[1642679407681,1.1529277,3145.7,3144.9,7.84087064]
[1642679407682,0.00511581,3145.5,3144.9,7.84087064]
[1642679407982,0.00511581,3145.5,3145.0,2.72922351]
[1642679408182,0.00568423,3145.6,3145.0,2.72922351]
[1642679408581,0.00511581,3145.5,3145.0,2.72922351]
[1642679408983,1.1529277,3145.7,3145.0,2.72922351]
[1642679408984,0.00568423,3145.6,3145.0,2.72922351]
[1642679409382,1.1529277,3145.7,3145.0,2.70212937]
[1642679409383,0.00511581,3145.5,3145.0,2.70212937]
[1642679409583,0.00511581,3145.5,3144.9,2.92174855]
[1642679409782,1.1529277,3145.7,3144.9,2.92174855]
[1642679409783,0.00568423,3145.6,3144.9,2.92174855]
[1642679410184,0.00511581,3145.5,3144.9,2.92174855]
[1642679410636,0.00568423,3145.6,3144.9,2.92174855]
[1642679411040,0.00511581,3145.5,3145.0,2.74295876]
[1642679411542,0.00568423,3145.6,3145.0,2.74295876]
[1642679411939,0.00511581,3145.5,3145.0,2.74295876]
[1642679412238,1.1529277,3145.7,3145.0,2.74295876]
[1642679412239,0.00568423,3145.6,3145.0,2.74295876]
[1642679412440,0.00371515,3145.4,3145.0,2.74295876]
[1642679412638,0.00428357,3145.5,3145.0,2.74295876]
[1642679412841,0.00314672,3145.3,3145.0,2.74295876]
[1642679413039,0.00371515,3145.4,3145.0,2.74295876]
[1642679413238,0.0025783,3145.2,3145.0,2.74295876]
[1642679413439,0.00314672,3145.3,3145.0,2.74295876]
[1642679413640,0.00200988,3145.1,3145.0,2.74295876]
[1642679413839,0.0025783,3145.2,3145.0,2.74295876]
[1642679414142,0.00200988,3145.1,3145.0,4.36028208]
[1642679414783,0.00200988,3145.1,3145.0,1.61732332]
[1642679414983,0.00200988,3145.1,3144.9,2.92174855]
[1642679415384,0.00144145,3145.0,3144.9,2.92174855]
[1642679416586,0.00144145,3145.0,3144.9,1.79801278]
[1642679417786,0.00144145,3145.0,3144.9,3.1184091]
[1642679418232,0.00144145,3145.0,3144.9,6.55589394]
[1642679418634,3.0768,3146.3,3145.1,0.00288289]
[1642679418834,3.0768,3146.3,3145.2,1.6138517]
[1642679419035,0.00682108,3146.2,3145.3,4.22429434]
[1642679419234,0.00682108,3146.2,3145.3,4.52429434]
[1642679419439,0.00625266,3146.1,3145.5,0.7947162]
[1642679419635,0.00625266,3146.1,3145.6,3.27970343]
[1642679419835,1.173,3146.6,3145.6,3.27970343]
[1642679419836,0.00568424,3146.0,3145.6,3.27970343]
[1642679420236,1.173,3146.6,3145.4,2.4085817]
[1642679420237,2.173,3146.6,3145.4,2.78916747]
[1642679420437,2.173,3146.6,3145.5,0.3]
[1642679420639,2.173,3146.6,3145.4,3.08916747]
[1642679420640,0.00852635,3146.5,3145.4,3.08916747]
[1642679421036,0.00795793,3146.4,3145.5,2.70331423]
[1642679421336,0.00738951,3146.3,3145.9,1.20419245]
[1642679421539,0.00738951,3146.3,3146.0,2.70331423]
[1642679421784,2.173,3146.6,3146.0,2.70331423]
[1642679421785,0.00682108,3146.2,3146.0,2.70331423]
[1642679422186,0.00625266,3146.1,3146.0,2.70331423]
[1642679423586,0.00625266,3146.1,3145.6,1.68375468]
[1642679423787,0.00625266,3146.1,3145.7,2.7034917]
[1642679424086,0.00568424,3146.0,3145.7,2.7034917]
[1642679424286,0.00568424,3146.0,3145.8,1.29322815]
[1642679424490,0.00511581,3145.9,3145.8,1.29322815]
[1642679424687,0.00511581,3145.9,3145.8,3.79322815]
[1642679424887,0.00511581,3145.9,3145.8,7.09730945]
[1642679425537,0.00511581,3145.9,3145.8,6.90349558]
[1642679427533,0.00511581,3145.9,3145.8,7.36234558]
[1642679427733,0.00511581,3145.9,3145.8,6.90349558]
[1642679427933,0.00511581,3145.9,3145.8,4.40349558]
[1642679428134,0.00511581,3145.9,3145.8,1.59322815]
[1642679429479,0.00511581,3145.9,3145.8,5.24322815]
[1642679431183,0.00511581,3145.9,3145.8,1.59322815]